fUST/lending_fUST_20251213
["ID","MTS","AMOUNT","RATE_DAILY","PERIOD"]
[398407345,1765617076819,-500.0,0.00028219,3]
[398407346,1765617076828,-529.18115597,0.00028219,3]
[398407347,1765617076837,-500.0,0.00028219,3]
[398407348,1765617076846,-500.0,0.00028219,3]
[398407349,1765617076856,-1371.34,0.00028219,3]
[398407350,1765617076866,-500.0,0.00028219,3]
[398407351,1765617076876,-1544.08,0.00028219,3]
[398407352,1765617076885,-500.0,0.00028219,3]
[398407353,1765617076895,-500.0,0.00028219,3]
[398407354,1765617076904,-500.0,0.00028219,3]
[398407355,1765617076913,-500.0,0.00028219,3]
[398407356,1765617076925,-964.54,0.00028219,3]
[398407357,1765617076935,-500.0,0.00028219,3]
[398407358,1765617076944,-2211.52,0.00028219,3]
[398407359,1765617076954,-157.65135864,0.00028219,3]
[398407360,1765617076964,-501.25611156,0.00028219,3]
[398407361,1765617076973,-715.72,0.00028219,3]
[398407362,1765617076982,-500.0,0.00028219,3]
[398407363,1765617076993,-500.0,0.00028219,3]
[398407364,1765617077003,-500.0,0.00028219,3]
[398407365,1765617077012,-575.31180865,0.00028219,3]
[398407366,1765617077022,-644.23,0.00028219,3]
[398407367,1765617077031,-500.0,0.00028219,3]
[398407368,1765617077041,-500.0,0.00028219,3]
[398407369,1765617077052,-500.0,0.00028219,3]
[398407370,1765617077062,-500.0,0.00028219,3]
[398407371,1765617077071,-1282.87,0.00028219,3]
[398407372,1765617077081,-562.72,0.00028219,3]
[398407373,1765617077091,-749.99,0.00028219,3]
[398407374,1765617077100,-1878.73,0.00028219,3]
[398407375,1765617077110,-500.0,0.00028219,3]
[398407376,1765617077119,-500.0,0.00028219,3]
[398407377,1765617077130,-911.18,0.00028219,3]
[398407378,1765617077139,-1507.87,0.00028219,3]
[398407379,1765617077148,-500.0,0.00028219,3]
[398407380,1765617077158,-690.11,0.00028219,3]
[398407381,1765617077167,-927.44,0.00028219,3]
[398407382,1765617077176,-500.0,0.00028219,3]
[398407383,1765617077186,-500.0,0.00028219,3]
[398407384,1765617077195,-1770.22,0.00028219,3]
[398407385,1765617077204,-750.26,0.00028219,3]
[398407386,1765617077214,-500.0,0.00028219,3]
[398407387,1765617077223,-500.0,0.00028219,3]
[398407388,1765617077231,-787.25,0.00028219,3]
[398407389,1765617077240,-863.65,0.00028219,3]
[398407390,1765617077249,-500.0,0.00028219,3]
[398407391,1765617077258,-500.0,0.00028219,3]
[398407392,1765617077267,-1287.94,0.00028219,3]
[398407393,1765617077276,-500.0,0.00028219,3]
[398407394,1765617077286,-2003.21,0.00028219,3]
[398407395,1765617077295,-500.0,0.00028219,2]
[398407396,1765617077304,-500.0,0.00028219,3]
[398407397,1765617077314,-500.0,0.00028219,3]
[398407398,1765617077323,-500.0,0.00028219,3]
[398407399,1765617077332,-757.47,0.00028219,3]
[398407400,1765617077341,-1230.98,0.00028219,3]
[398407401,1765617077350,-500.0,0.00028219,3]
[398407402,1765617077359,-500.0,0.00028219,3]
[398407403,1765617077368,-742.57,0.00028219,3]
[398407404,1765617077376,-500.0,0.00028219,3]
[398407405,1765617077387,-1040.17,0.00028219,3]
[398407406,1765617077397,-1961.04,0.00028219,3]
[398407407,1765617077409,-500.0,0.00028219,3]
[398407408,1765617077419,-500.0,0.00028219,3]
[398407409,1765617077429,-1227.64,0.00028219,3]
[398407410,1765617077439,-500.0,0.00028219,3]
[398407411,1765617077449,-500.0,0.00028219,3]
[398407412,1765617077459,-804.14,0.00028219,3]
[398407413,1765617077470,-500.0,0.00028219,3]
[398407414,1765617077480,-1602.27,0.00028219,3]
[398407415,1765617077489,-2358.14,0.00028219,3]
[398407416,1765617077499,-500.0,0.00028219,3]
[398407417,1765617077508,-500.0,0.00028219,3]
[398407418,1765617077519,-500.0,0.00028219,3]
[398407419,1765617077528,-500.0,0.00028219,3]
[398407420,1765617077538,-500.0,0.00028219,3]
[398407421,1765617077548,-501.30760271,0.00028219,3]
[398407422,1765617077557,-500.78455641,0.00028219,3]
[398407423,1765617077568,-500.0,0.00028219,3]
[398407424,1765617077578,-500.0,0.00028219,3]
[398407425,1765617077587,-758.05,0.00028219,3]
[398407426,1765617077597,-2188.95,0.00028219,3]
[398407427,1765617077609,-500.0,0.00028219,3]
[398407428,1765617077620,-501.27815784,0.00028219,3]
[398407429,1765617077630,-500.0,0.00028219,3]
[398407430,1765617077639,-500.0,0.00028219,3]
[398407431,1765617077650,-1467.28,0.00028219,3]
[398407432,1765617077660,-643.24,0.00028219,3]
[398407433,1765617077670,-500.0,0.00028219,3]
[398407434,1765617077679,-1893.58,0.00028219,3]
[398407435,1765617077689,-2044.9,0.00028219,3]
[398407436,1765617077700,-501.62389993,0.00028219,3]
[398407437,1765617077709,-305.16408561,0.00028219,3]
[398407438,1765617077718,-464.57585299,0.00028219,3]
[398407439,1765617077727,-500.0,0.00028219,3]
[398407440,1765617077738,-500.0,0.00028219,3]
[398407441,1765617077747,-882.53,0.00028219,3]
[398407442,1765617077756,-797.56,0.00028219,3]
[398407443,1765617077766,-500.0,0.00028219,3]
[398407444,1765617077776,-2394.02,0.00028219,3]
[398407445,1765617077785,-500.0,0.00028219,3]
[398407446,1765617077795,-502.65454885,0.00028219,3]
[398407447,1765617077805,-500.0,0.00028219,3]
[398407448,1765617077815,-500.0,0.00028219,3]
[398407449,1765617077824,-2469.26,0.00028219,3]
[398407450,1765617077834,-725.09,0.00028219,3]
[398407451,1765617077844,-2460.35,0.00028219,3]
[398407452,1765617077854,-500.0,0.00028219,3]
[398407453,1765617077863,-500.0,0.00028219,3]
[398407454,1765617077873,-621.99,0.00028219,3]
[398407455,1765617077882,-256.53186344,0.00028219,3]
[398407456,1765617077891,-500.0,0.00028219,3]
[398407457,1765617077900,-500.0,0.00028219,3]
[398407458,1765617077909,-1840.29,0.00028219,3]
[398407459,1765617077921,-500.0,0.00028219,3]
[398407460,1765617077931,-500.0,0.00028219,3]
[398407461,1765617077941,-2395.32,0.00028219,3]
[398407462,1765617077952,-539.27,0.00028219,3]
[398407463,1765617077962,-1618.61,0.00028219,3]
[398407464,1765617077972,-1165.82,0.00028219,3]
[398407465,1765617077983,-500.0,0.00028219,3]
[398407466,1765617077993,-2371.07,0.00028219,3]
[398407467,1765617078003,-500.0,0.00028219,3]
[398407468,1765617078012,-1656.77,0.00028219,3]
[398407469,1765617078021,-2139.92,0.00028219,3]
[398407470,1765617078031,-501.15122937,0.00028219,3]
[398407471,1765617078040,-2033.6,0.00028219,3]
[398407472,1765617078049,-500.0,0.00028219,3]
[398407473,1765617078059,-1956.59,0.00028219,3]
[398407474,1765617078068,-500.0,0.00028219,3]
[398407475,1765617078078,-1222.88,0.00028219,3]
[398407476,1765617078087,-2211.14,0.00028219,3]
[398407477,1765617078096,-1292.66,0.00028219,3]
[398407478,1765617078106,-1054.22,0.00028219,3]
[398407479,1765617078115,-500.0,0.00028219,3]
[398407480,1765617078124,-2063.19,0.00028219,3]
[398407481,1765617078134,-500.0,0.00028219,3]
[398407482,1765617078143,-500.0,0.00028219,3]
[398407483,1765617078153,-546.02,0.00028219,3]
[398407484,1765617078162,-1532.63,0.00028219,3]
[398407485,1765617078171,-2352.93,0.00028219,3]
[398407486,1765617078180,-500.0,0.00028219,3]
[398407487,1765617078189,-500.0,0.00028219,3]
[398407488,1765617078198,-500.0,0.00028219,3]
[398407489,1765617078207,-870.12,0.00028219,2]
[398407490,1765617078216,-500.0,0.00028219,3]
[398407491,1765617078226,-532.64509633,0.00028219,3]
[398407492,1765617078235,-500.0,0.00028219,3]
[398407493,1765617078243,-576.15,0.00028219,3]
[398407494,1765617078252,-500.0,0.00028219,3]
[398407495,1765617078261,-500.0,0.00028219,3]
[398407496,1765617078270,-500.0,0.00028219,3]
[398407497,1765617078279,-500.0,0.00028219,3]
[398407498,1765617078288,-2186.76,0.00028219,3]
[398407499,1765617078297,-500.0,0.00028219,3]
[398407500,1765617078306,-1646.45,0.00028219,3]
[398407501,1765617078316,-500.0,0.00028219,3]
[398407502,1765617078325,-2156.34,0.00028219,3]
[398407503,1765617078334,-1000.0,0.00028219,2]
[398407504,1765617078343,-500.0,0.00028219,3]
[398407505,1765617078353,-500.0,0.00028219,3]
[398407506,1765617078363,-500.0,0.00028219,3]
[398407507,1765617078372,-500.0,0.00028219,3]
[398407508,1765617078382,-500.0,0.00028219,3]
[398407509,1765617078392,-2095.52,0.00028219,3]
[398407510,1765617078403,-500.0,0.00028219,3]
[398407511,1765617078412,-2472.36,0.00028219,3]
[398407512,1765617078421,-504.3,0.00028219,3]
[398407513,1765617078431,-1173.99,0.00028219,3]
[398407514,1765617078441,-1669.5,0.00028219,3]
[398407515,1765617078450,-500.0,0.00028219,3]
[398407516,1765617078459,-500.0,0.00028219,3]
[398407517,1765617078469,-500.0,0.00028219,3]
[398407518,1765617078478,-8313.59,0.00028219,3]
[398407519,1765617078488,-2189.26,0.00028219,3]
[398407520,1765617078498,-579.56644348,0.00028219,3]
[398407521,1765617078508,-500.0,0.00028219,3]
[398407522,1765617078517,-534.19369213,0.00028219,3]
[398407523,1765617078526,-756.99,0.00028219,3]
[398407524,1765617078535,-500.0,0.00028219,3]
[398407525,1765617078544,-500.0,0.00028219,3]
[398407526,1765617078554,-341.33,0.00028219,3]
[398407527,1765617078563,-500.0,0.00028219,3]
[398407528,1765617078573,-2196.27,0.00028219,3]
[398407529,1765617078582,-500.0,0.00028219,3]
[398407530,1765617078591,-2077.28,0.00028219,3]
[398407531,1765617078600,-500.0,0.00028219,3]
[398407532,1765617078609,-500.0,0.00028219,3]
[398407533,1765617078618,-500.0,0.00028219,3]
[398407534,1765617078627,-2178.91,0.00028219,3]
[398407535,1765617078636,-500.0,0.00028219,3]
[398407536,1765617078645,-1039.54,0.00028219,3]
[398407537,1765617078654,-1677.78,0.00028219,3]
[398407538,1765617078664,-501.24548342,0.00028219,3]
[398407539,1765617078673,-500.0,0.00028219,3]
[398407540,1765617078683,-500.0,0.00028246,14]
[398407541,1765617078695,-500.0,0.00028266,3]
[398407542,1765617078713,-500.0,0.00028266,3]
[398407543,1765617078722,-500.0,0.00028266,3]
[398407544,1765617078731,-500.0,0.00028266,3]
[398407545,1765617078740,-500.0,0.00028266,3]
[398407546,1765617078749,-500.0,0.00028266,3]
[398407547,1765617078759,-500.0,0.00028266,3]
[398407548,1765617078768,-500.0,0.00028266,3]
[398407549,1765617078777,-600.0,0.00028266,3]
[398407550,1765617078787,-909.28,0.00028272,3]
[398407551,1765617078797,-232.0,0.00028356,3]
[398407552,1765617078806,-1243752.96943497,0.00028413,4]
[398407553,1765617078816,-964.28718084,0.00028424,2]
[398407554,1765617078826,-243.70486952,0.0002848,30]
[398407555,1765617078835,-804.94,0.00028493,3]
[398407556,1765617078844,-500.0,0.00028493,3]
[398407557,1765617078853,-500.0,0.00028493,3]
[398407558,1765617078862,-1145.8,0.00028493,3]
[398407559,1765617078871,-897.33,0.00028493,3]
[398407560,1765617078880,-500.0,0.00028493,3]
[398407561,1765617078890,-500.0,0.00028493,3]
[398407562,1765617078899,-500.0,0.00028493,3]
[398407563,1765617078908,-500.0,0.00028493,3]
[398407564,1765617078919,-1068.39,0.00028493,3]
[398407565,1765617078929,-500.0,0.00028493,3]
[398407566,1765617078938,-1993.075405,0.00028493,3]
[398407567,1765617078947,-500.0,0.00028493,3]
[398407568,1765617078956,-500.0,0.00028493,3]
[398407569,1765617078966,-500.0,0.00028493,3]
[398407570,1765617078975,-500.0,0.00028493,3]
[398407571,1765617078984,-645.92,0.00028493,3]
[398407572,1765617078994,-500.82642702,0.00028493,3]
[398407573,1765617079003,-553.99,0.00028493,3]
[398407574,1765617079012,-500.0,0.00028493,3]
[398407575,1765617079021,-500.0,0.00028493,3]
[398407576,1765617079030,-500.0,0.00028493,3]
[398407577,1765617079041,-500.0,0.00028493,3]
[398407578,1765617079050,-500.0,0.00028493,3]
[398407579,1765617079059,-500.0,0.00028493,3]
[398407580,1765617079068,-500.0,0.00028493,3]
[398407581,1765617079078,-500.0,0.00028493,3]
[398407582,1765617079087,-660.68,0.00028493,3]
[398407583,1765617079096,-856.0,0.00028493,3]
[398407584,1765617079105,-500.0,0.00028493,3]
[398407585,1765617079114,-500.0,0.00028493,3]
[398407586,1765617079123,-790.78,0.00028493,3]
[398407587,1765617079132,-500.0,0.00028493,3]
[398407588,1765617079141,-500.0,0.00028493,3]
[398407589,1765617079150,-501.69580957,0.00028493,3]
[398407590,1765617079159,-500.0,0.00028493,3]
[398407591,1765617079168,-512.89,0.00028493,3]
[398407592,1765617079177,-500.0,0.00028493,3]
[398407593,1765617079186,-500.0,0.00028493,3]
[398407594,1765617079195,-500.0,0.00028493,3]
[398407595,1765617079204,-500.44308427,0.00028493,3]
[398407596,1765617079213,-500.0,0.00028493,3]
[398407597,1765617079222,-500.0,0.00028493,3]
[398407598,1765617079230,-500.0,0.00028493,3]
[398407599,1765617079240,-500.0,0.00028493,3]
[398407600,1765617079248,-500.0,0.00028493,3]
[398407601,1765617079257,-639.5,0.00028493,3]
[398407602,1765617079267,-500.0,0.00028493,3]
[398407603,1765617079275,-500.0,0.00028493,3]
[398407604,1765617079285,-3077.68,0.00028493,2]
[398407605,1765617079294,-500.0,0.00028493,3]
[398407606,1765617079303,-593.39,0.00028493,3]
[398407607,1765617079313,-2235.67,0.00028493,3]
[398407608,1765617079322,-516.504003,0.00028493,3]
[398407609,1765617079333,-1390.25,0.00028493,3]
[398407610,1765617079342,-500.0,0.00028493,3]
[398407611,1765617079354,-785.9,0.00028493,3]
[398407612,1765617079365,-500.0,0.00028493,3]
[398407613,1765617079375,-500.0,0.00028493,3]
[398407614,1765617079387,-831.81,0.00028493,3]
[398407615,1765617079399,-1408.37,0.00028493,3]
[398407616,1765617079409,-500.0,0.00028493,3]
[398407617,1765617079420,-500.0,0.00028493,3]
[398407618,1765617079430,-1689.79,0.00028493,3]
[398407619,1765617079440,-500.0,0.00028493,3]
[398407620,1765617079450,-500.0,0.00028493,3]
[398407621,1765617079459,-500.0,0.00028493,3]
[398407622,1765617079469,-500.0,0.00028493,3]
[398407623,1765617079480,-322.58119143,0.00028493,3]
[398407624,1765617079490,-2326.68,0.00028493,3]
[398407625,1765617079500,-824.67,0.00028493,3]
[398407626,1765617079511,-1057.47,0.00028493,3]
[398407627,1765617079522,-500.0,0.00028493,3]
[398407628,1765617079534,-500.0,0.00028493,3]
[398407629,1765617079545,-500.0,0.00028493,3]
[398407630,1765617079554,-430.39313969,0.00028493,3]
[398407631,1765617079564,-500.0,0.00028493,3]
[398407632,1765617079574,-500.0,0.00028493,3]
[398407633,1765617079583,-645.04339902,0.00028493,3]
[398407634,1765617079593,-500.0,0.00028493,3]
[398407635,1765617079603,-500.0,0.00028493,3]
[398407636,1765617079614,-500.0,0.00028493,3]
[398407637,1765617079623,-500.0,0.00028493,3]
[398407638,1765617079632,-1473.21,0.00028493,3]
[398407639,1765617079642,-500.0,0.00028493,3]
[398407640,1765617079652,-500.0,0.00028493,3]
[398407641,1765617079662,-500.0,0.00028493,3]
[398407642,1765617079672,-500.0,0.00028493,3]
[398407643,1765617079683,-501.52410859,0.00028493,3]
[398407644,1765617079692,-500.0,0.00028493,3]
[398407645,1765617079702,-500.0,0.00028493,3]
[398407646,1765617079712,-500.0,0.00028493,3]
[398407647,1765617079722,-500.0,0.00028493,3]
[398407648,1765617079731,-500.0,0.00028493,3]
[398407649,1765617079742,-500.0,0.00028493,3]
[398407650,1765617079752,-500.0,0.00028493,3]
[398407651,1765617079768,-500.0,0.00028493,3]
[398407652,1765617079778,-500.0,0.00028493,3]
[398407653,1765617079788,-846.23,0.00028493,3]
[398407654,1765617079799,-500.0,0.00028493,3]
[398407655,1765617079808,-500.0,0.00028493,3]
[398407656,1765617079817,-500.0,0.00028493,3]
[398407657,1765617079827,-500.0,0.00028493,3]
[398407658,1765617079837,-500.0,0.00028493,3]
[398407659,1765617079846,-583.61,0.00028493,3]
[398407660,1765617079856,-626.59,0.00028493,3]
[398407661,1765617079866,-500.0,0.00028493,3]
[398407662,1765617079876,-904.94,0.00028493,3]
[398407663,1765617079886,-500.0,0.00028493,3]
[398407664,1765617079897,-500.0,0.00028493,3]
[398407665,1765617079908,-500.0,0.00028493,3]
[398407666,1765617079921,-501.79043871,0.00028493,3]
[398407667,1765617079930,-500.0,0.00028493,3]
[398407668,1765617079941,-500.0,0.00028493,3]
[398407669,1765617079952,-500.0,0.00028493,3]
[398407670,1765617079963,-798.1,0.00028493,3]
[398407671,1765617079973,-500.0,0.00028493,3]
[398407672,1765617079984,-1087.52,0.00028493,3]
[398407673,1765617079995,-500.0,0.00028493,3]
[398407674,1765617080006,-500.0,0.00028493,3]
[398407675,1765617080016,-500.0,0.00028493,3]
[398407676,1765617080027,-500.0,0.00028493,3]
[398407677,1765617080037,-2523.4,0.00028493,3]
[398407678,1765617080047,-1478.52,0.00028493,3]
[398407679,1765617080058,-726.62,0.00028493,3]
[398407680,1765617080070,-500.0,0.00028493,3]
[398407681,1765617080080,-789.39,0.00028493,3]
[398407682,1765617080093,-500.0,0.00028493,3]
[398407683,1765617080102,-500.0,0.00028493,3]
[398407684,1765617080113,-577.02,0.00028493,3]
[398407685,1765617080123,-857.63,0.00028493,3]
[398407686,1765617080133,-1260.15,0.00028493,3]
[398407687,1765617080143,-707.76,0.00028493,3]
[398407688,1765617080152,-500.0,0.00028493,3]
[398407689,1765617080161,-500.0,0.00028493,3]
[398407690,1765617080170,-349.85,0.00028493,3]
[398407691,1765617080180,-500.0,0.00028493,3]
[398407692,1765617080189,-501.99672955,0.00028493,3]
[398407693,1765617080198,-500.0,0.00028493,3]
[398407694,1765617080208,-500.0,0.00028493,3]
[398407695,1765617080218,-1622.32,0.00028493,3]
[398407696,1765617080228,-500.0,0.00028493,3]
[398407697,1765617080239,-500.0,0.00028493,3]
[398407698,1765617080249,-500.0,0.00028493,3]
[398407699,1765617080258,-500.0,0.00028493,3]
[398407700,1765617080268,-806.44,0.00028493,3]
[398407701,1765617080278,-500.0,0.00028493,3]
[398407702,1765617080288,-1000.0,0.00028493,2]
[398407703,1765617080298,-500.0,0.00028493,3]
[398407704,1765617080309,-1112.91,0.00028493,3]
[398407705,1765617080319,-500.0,0.00028493,3]
[398407706,1765617080329,-500.0,0.00028493,3]
[398407707,1765617080340,-500.0,0.00028493,2]
[398407708,1765617080352,-896.63,0.00028493,3]
[398407709,1765617080361,-500.0,0.00028493,3]
[398407710,1765617080370,-500.0,0.00028493,3]
[398407711,1765617080379,-500.0,0.00028493,3]
[398407712,1765617080388,-500.0,0.00028493,3]
[398407713,1765617080397,-500.0,0.00028493,3]
[398407714,1765617080407,-624.5,0.00028493,3]
[398407715,1765617080416,-500.0,0.00028493,3]
[398407716,1765617080425,-533.1758086,0.00028493,3]
[398407717,1765617080434,-500.0,0.00028493,3]
[398407718,1765617080444,-500.0,0.00028493,3]
[398407719,1765617080453,-654.65,0.00028493,3]
[398407720,1765617080462,-500.0,0.00028493,3]
[398407721,1765617080472,-500.0,0.00028493,3]
[398407722,1765617080481,-500.0,0.00028493,3]
[398407723,1765617080491,-500.0,0.00028493,3]
[398407724,1765617080500,-500.0,0.00028493,3]
[398407725,1765617080510,-554.60845646,0.00028493,3]
[398407726,1765617080519,-500.0,0.00028493,3]
[398407727,1765617080529,-583.25,0.00028493,3]
[398407728,1765617080538,-899.34,0.00028493,3]
[398407729,1765617080547,-500.0,0.00028493,3]
[398407730,1765617080556,-1121.98,0.00028493,3]
[398407731,1765617080566,-500.0,0.00028493,3]
[398407732,1765617080576,-500.0,0.00028493,3]
[398407733,1765617080585,-595.67,0.00028493,3]
[398407734,1765617080594,-500.0,0.00028493,3]
[398407735,1765617080604,-547.85,0.00028493,3]
[398407736,1765617080613,-500.0,0.00028493,3]
[398407737,1765617080622,-524.94967196,0.00028493,3]
[398407738,1765617080632,-892.15,0.00028493,3]
[398407739,1765617080642,-500.0,0.00028493,3]
[398407740,1765617080652,-500.0,0.00028493,3]
[398407741,1765617080663,-500.0,0.00028493,3]
[398407742,1765617080672,-500.0,0.00028493,3]
[398407743,1765617080682,-500.0,0.00028493,3]
[398407744,1765617080692,-500.0,0.00028493,3]
[398407745,1765617080703,-500.0,0.00028493,3]
[398407746,1765617080713,-500.0,0.00028493,3]
[398407747,1765617080722,-500.0,0.00028493,3]
[398407748,1765617080734,-2540.36,0.00028493,3]
[398407749,1765617080744,-821.39,0.00028493,3]
[398407750,1765617080757,-500.0,0.00028493,3]
[398407751,1765617080768,-502.50911469,0.00028493,3]
[398407752,1765617080779,-785.87,0.00028493,3]
[398407753,1765617080956,-500.0,0.00028493,3]
[398407754,1765617080967,-500.0,0.00028493,3]
[398407755,1765617080976,-500.0,0.00028493,2]
[398407756,1765617080986,-500.0,0.00028493,3]
[398407757,1765617080997,-500.0,0.00028493,3]
[398407758,1765617081007,-500.0,0.00028493,3]
[398407759,1765617081017,-1790.33,0.00028493,3]
[398407760,1765617081027,-500.0,0.00028493,3]
[398407761,1765617081036,-500.0,0.00028493,3]
[398407762,1765617081045,-500.0,0.00028493,3]
[398407763,1765617081055,-1160.64,0.00028493,3]
[398407764,1765617081065,-500.0,0.00028493,3]
[398407765,1765617081075,-546.42,0.00028493,3]
[398407766,1765617081084,-2190.53,0.00028493,3]
[398407767,1765617081094,-1371.12,0.00028493,3]
[398407768,1765617081105,-1198.16,0.00028493,3]
[398407769,1765617081116,-500.0,0.00028493,3]
[398407770,1765617081126,-500.0,0.00028493,3]
[398407771,1765617081136,-537.13942182,0.00028493,3]
[398407772,1765617081147,-500.0,0.00028493,3]
[398407773,1765617081157,-1547.34,0.00028493,3]
[398407774,1765617081168,-500.0,0.00028493,3]
[398407775,1765617081177,-500.0,0.00028493,3]
[398407776,1765617081187,-500.0,0.00028493,3]
[398407777,1765617081197,-2798.21,0.00028493,3]
[398407778,1765617081207,-500.0,0.00028493,3]
[398407779,1765617081218,-1546.27,0.00028493,3]
[398407780,1765617081229,-500.0,0.00028493,3]
[398407781,1765617081241,-500.0,0.00028493,3]
[398407782,1765617081251,-500.0,0.00028493,3]
[398407783,1765617081262,-500.0,0.00028493,3]
[398407784,1765617081271,-1706.88,0.00028493,3]
[398407785,1765617081281,-651.93,0.00028493,3]
[398407786,1765617081291,-500.0,0.00028493,3]
[398407787,1765617081301,-649.92,0.00028493,3]
[398407788,1765617081311,-500.0,0.00028493,3]
[398407789,1765617081320,-500.0,0.00028493,3]
[398407790,1765617081330,-1655.21,0.00028493,3]
[398407791,1765617081340,-500.0,0.00028493,3]
[398407792,1765617081350,-500.0,0.00028493,3]
[398407793,1765617081360,-532.96,0.00028493,3]
[398407794,1765617081369,-500.0,0.00028493,3]
[398407795,1765617081379,-500.0,0.00028493,3]
[398407796,1765617081388,-503.57,0.00028493,3]
[398407797,1765617081397,-652.81,0.00028493,3]
[398407798,1765617081407,-1422.67,0.00028493,3]
[398407799,1765617081416,-589.78,0.00028493,3]
[398407800,1765617081425,-500.0,0.00028493,3]
[398407801,1765617081435,-2352.96,0.00028493,3]
[398407802,1765617081444,-500.0,0.00028493,3]
[398407803,1765617081454,-2666.95,0.00028493,3]
[398407804,1765617081464,-500.0,0.00028493,3]
[398407805,1765617081477,-500.0,0.00028493,3]
[398407806,1765617081487,-500.0,0.00028493,3]
[398407807,1765617081497,-851.44,0.00028493,3]
[398407808,1765617081507,-500.0,0.00028493,3]
[398407809,1765617081519,-819.63,0.00028493,3]
[398407810,1765617081529,-500.0,0.00028493,3]
[398407811,1765617081539,-500.0,0.00028493,3]
[398407812,1765617081548,-2653.96,0.00028493,3]
[398407813,1765617081557,-927.33,0.00028493,3]
[398407814,1765617081567,-500.0,0.00028493,3]
[398407815,1765617081576,-500.0,0.00028493,3]
[398407816,1765617081585,-181.05761145,0.00028493,3]
[398407817,1765617081594,-710.47,0.00028493,3]
[398407818,1765617081603,-500.0,0.00028493,3]
[398407819,1765617081613,-1285.14,0.00028493,3]
[398407820,1765617081622,-500.0,0.00028493,3]
[398407821,1765617081631,-500.0,0.00028493,3]
[398407822,1765617081641,-1412.4,0.00028493,3]
[398407823,1765617081650,-500.0,0.00028493,3]
[398407824,1765617081660,-262.91951031,0.00028493,3]
[398407825,1765617081671,-500.0,0.00028493,3]
[398407826,1765617081681,-624.02,0.00028493,3]
[398407827,1765617081690,-500.0,0.00028493,3]
[398407828,1765617081700,-533.34,0.00028493,3]
[398407829,1765617081709,-500.0,0.00028493,3]
[398407830,1765617081718,-848.09,0.00028493,3]
[398407831,1765617081728,-500.77726992,0.00028493,3]
[398407832,1765617081737,-500.0,0.00028493,3]
[398407833,1765617081747,-1628.79,0.00028493,3]
[398407834,1765617081757,-500.0,0.00028493,3]
[398407835,1765617081766,-500.0,0.00028493,3]
[398407836,1765617081775,-500.0,0.00028493,3]
[398407837,1765617081785,-500.0,0.00028493,3]
[398407838,1765617081795,-2704.91,0.00028493,3]
[398407839,1765617081805,-500.0,0.00028493,3]
[398407840,1765617081815,-895.83,0.00028493,3]
[398407841,1765617081824,-500.0,0.00028493,3]
[398407842,1765617081833,-813.49,0.00028493,3]
[398407843,1765617081843,-875.5,0.00028493,3]
[398407844,1765617081852,-500.0,0.00028493,3]